Workbook

Sheet udgiftsrapport
A1: FIRMANAVN
A2: UDGIFTSRAPPORT
B4: MEDARBEJDER: | C4: Pernille Halberg | G4: GODKENDT AF:
B5: AFDELING: | C5: Salg
B6: UGEN SLUTTER: | C6: 2013-03-07 | G6: DATO:
B7: KILOMETERSATS: | C7: kr. 0.67
C9: =UPPER(TEXT(C10,"dddd")) -> FREDAG | D9: LØRDAG | E9: SØNDAG | F9: MANDAG | G9: TIRSDAG | H9: ONSDAG | I9: TORSDAG
B10: TRANSPORT | C10: =Ugen_slutter-6 -> 2013-03-01 | D10: =Ugen_slutter-5 -> 2013-03-02 | E10: =Ugen_slutter-4 -> 2013-03-03 | F10: =Ugen_slutter-3 -> 2013-03-04 | G10: =Ugen_slutter-2 -> 2013-03-05 | H10: =Ugen_slutter-1 -> 2013-03-06 | I10: =Ugen_slutter -> 2013-03-07 | J10: I ALT
B11: Kørte km | C11: 145 | J11: =SUM(Transport[[#This Row],[Dag 1]:[Dag 7]]) -> 145
B12: Kørselspenge | C12: =C11*Kørselsforbrug -> kr. 97.15 | D12: kr. 0.00 | E12: kr. 0.00 | F12: kr. 0.00 | G12: kr. 0.00 | H12: kr. 0.00 | I12: kr. 0.00 | J12: =SUM(Transport[[#This Row],[Dag 1]:[Dag 7]]) -> kr. 97.15
B13: Parkering og vejafgifter | F13: kr. 17.00 | J13: =SUM(Transport[[#This Row],[Dag 1]:[Dag 7]]) -> kr. 17.00
B14: Leje af bil | C14: kr. 79.00 | F14: kr. 79.00 | J14: =SUM(Transport[[#This Row],[Dag 1]:[Dag 7]]) -> kr. 158.00
B15: Taxa/Limousine | J15: =SUM(Transport[[#This Row],[Dag 1]:[Dag 7]]) -> kr. 0.00
B16: Andet (tog eller bus) | J16: =SUM(Transport[[#This Row],[Dag 1]:[Dag 7]]) -> kr. 0.00
B17: Flybillet | F17: kr. 235.00 | J17: =SUM(Transport[[#This Row],[Dag 1]:[Dag 7]]) -> kr. 235.00
B18: I ALT | C18: =SUBTOTAL(109,C12:C17) -> kr. 176.15 | D18: =SUBTOTAL(109,D12:D17) -> kr. 0.00 | F18: =SUBTOTAL(109,F12:F17) -> kr. 331.00 | G18: =SUBTOTAL(109,G12:G17) -> kr. 0.00 | H18: =SUBTOTAL(109,H12:H17) -> kr. 0.00 | I18: =SUBTOTAL(109,I12:I17) -> kr. 0.00 | J18: =SUM(J12:J17) -> kr. 507.15
B20: INDLOGERING OG MÅLTIDER
B21: Indlogering | C21: kr. 145.00 | J21: =SUM(Indlogering_måltider[[#This Row],[Dag 1]:[Dag 7]]) -> kr. 145.00
B22: Morgenmad | C22: kr. 11.49 | J22: =SUM(Indlogering_måltider[[#This Row],[Dag 1]:[Dag 7]]) -> kr. 11.49
B23: Frokost | C23: kr. 12.00 | J23: =SUM(Indlogering_måltider[[#This Row],[Dag 1]:[Dag 7]]) -> kr. 12.00
B24: Middag | C24: kr. 17.00 | J24: =SUM(Indlogering_måltider[[#This Row],[Dag 1]:[Dag 7]]) -> kr. 17.00
B25: Snack | C25: =C24*Kørselsforbrug -> kr. 11.39 | J25: =SUM(Indlogering_måltider[[#This Row],[Dag 1]:[Dag 7]]) -> kr. 11.39
B26: Subtotal for måltider | C26: =SUM(C22:C24) -> kr. 40.49 | D26: =SUM(D22:D24) -> kr. 0.00 | E26: kr. 0.00 | F26: kr. 0.00 | G26: kr. 0.00 | H26: kr. 0.00 | I26: kr. 0.00 | J26: =SUM(Indlogering_måltider[[#This Row],[Dag 1]:[Dag 7]]) -> kr. 40.49
B27: I ALT | C27: =SUBTOTAL(109,C21,C26) -> kr. 185.49 | D27: kr. 0.00 | E27: kr. 0.00 | F27: kr. 0.00 | G27: kr. 0.00 | H27: kr. 0.00 | I27: kr. 0.00 | J27: kr. 185.49
B29: DIVERSE
B30: Forsyninger | J30: =SUM(Diverse[[#This Row],[Dag 1]:[Dag 7]]) -> kr. 0.00
B31: Udstyr | J31: =SUM(Diverse[[#This Row],[Dag 1]:[Dag 7]]) -> kr. 0.00
B32: Telefon, fax, internet | J32: =SUM(Diverse[[#This Row],[Dag 1]:[Dag 7]]) -> kr. 0.00
B33: Andet* | J33: =SUM(Diverse[[#This Row],[Dag 1]:[Dag 7]]) -> kr. 0.00
B34: Underholdning* | F34: kr. 199.00 | J34: =SUM(Diverse[[#This Row],[Dag 1]:[Dag 7]]) -> kr. 199.00
B35: I ALT | C35: =SUBTOTAL(109,Diverse[Dag 1]) -> kr. 0.00 | D35: =SUBTOTAL(109,Diverse[Dag 2]) -> kr. 0.00 | E35: =SUBTOTAL(109,Diverse[Dag 3]) -> kr. 0.00 | F35: =SUBTOTAL(109,Diverse[Dag 4]) -> kr. 199.00 | G35: =SUBTOTAL(109,Diverse[Dag 5]) -> kr. 0.00 | H35: =SUBTOTAL(109,Diverse[Dag 6]) -> kr. 0.00 | I35: =SUBTOTAL(109,Diverse[Dag 7]) -> kr. 0.00 | J35: =SUBTOTAL(109,Diverse[I Alt]) -> kr. 199.00
B37: SAMLEDE TOTALER | C37: =SUM(Diverse[[#Totals],[Dag 1]],Indlogering_måltider[[#Totals],[Dag 1]],Transport[[#Totals],[Dag 1]]) -> kr. 361.64 | D37: =SUM(Diverse[[#Totals],[Dag 2]],Indlogering_måltider[[#Totals],[Dag 2]],Transport[[#Totals],[Dag 2]]) -> kr. 0.00 | E37: =SUM(Diverse[[#Totals],[Dag 3]],Indlogering_måltider[[#Totals],[Dag 3]],Transport[[#Totals],[Dag 3]]) -> kr. 0.00 | F37: =SUM(Diverse[[#Totals],[Dag 4]],Indlogering_måltider[[#Totals],[Dag 4]],Transport[[#Totals],[Dag 4]]) -> kr. 530.00 | G37: =SUM(Diverse[[#Totals],[Dag 5]],Indlogering_måltider[[#Totals],[Dag 5]],Transport[[#Totals],[Dag 5]]) -> kr. 0.00 | H37: =SUM(Diverse[[#Totals],[Dag 6]],Indlogering_måltider[[#Totals],[Dag 6]],Transport[[#Totals],[Dag 6]]) -> kr. 0.00 | I37: =SUM(Diverse[[#Totals],[Dag 7]],Indlogering_måltider[[#Totals],[Dag 7]],Transport[[#Totals],[Dag 7]]) -> kr. 0.00 | J37: =SUM(Diverse[[#Totals],[I Alt]],Indlogering_måltider[[#Totals],[I Alt]],Transport[[#Totals],[I Alt]]) -> kr. 891.64
J39: UDGIFTER I ALT
B40: *Forretningsformål med "Underholdning" og "andre" elementer: | J40: =SUM(J18,J27,J35) -> kr. 891.64
J41: FORSKUDSBETALING
J43: TILBAGEBETALING I ALT
J44: =J40-J42 -> kr. 891.64
J45: Vedhæft alle kvitteringer.
